bitfinex/quotes_SOLUSD_20250111
["timestamp","ask_amount","ask_price","bid_price","bid_amount"]
[1736595603111,20.0,186.7,186.59,65.85610367]
[1736595603500,20.0,186.7,186.6,23.776884]
[1736595603720,18.7721161,186.7,186.6,32.71298767]
[1736595603918,1.5105,186.69,186.6,32.71298767]
[1736595604218,1.5105,186.69,186.6,23.776884]
[1736595606115,1.5105,186.69,186.6,8.93610367]
[1736595606815,1.5105,186.69,186.6,23.776884]
[1736595609936,1.5105,186.69,186.62,23.776884]
[1736595610100,1.5105,186.69,186.62,32.71298767]
[1736595610543,1.5105,186.69,186.62,23.776884]
[1736595614048,6.4653,186.73,186.62,23.776884]
[1736595614228,8.1076,186.73,186.66,32.71298767]
[1736595614402,8.1076,186.73,186.68,23.776884]
[1736595615546,8.1076,186.73,186.66,8.93610367]
[1736595615755,8.1076,186.73,186.66,23.776884]
[1736595617236,8.1076,186.73,186.66,8.93610367]
[1736595617920,8.1076,186.73,186.65,32.71298767]
[1736595618436,8.1076,186.73,186.65,23.776884]
[1736595619019,8.1076,186.73,186.65,8.93610367]
[1736595620339,8.1076,186.73,186.64,33.51639334]
[1736595621636,8.1076,186.73,186.64,23.776884]
[1736595622240,8.1076,186.73,186.64,32.71298767]
[1736595623718,8.1076,186.73,186.62,8.93610367]
[1736595624340,20.0,186.7,186.61,8.93610367]
[1736595624714,20.0,186.7,186.62,23.776884]
[1736595625045,20.0,186.7,186.61,8.93610367]
[1736595625625,20.0,186.7,186.62,23.776884]
[1736595629940,20.0,186.7,186.6,8.93610367]
[1736595630123,20.0,186.7,186.59,8.93610367]
[1736595630836,20.0,186.7,186.6,23.776884]
[1736595633950,20.0,186.7,186.58,8.93610367]
[1736595634128,20.0,186.66,186.56,8.93610367]
[1736595635254,20.0,186.66,186.57,32.71298767]
[1736595636254,20.0,186.66,186.59,23.776884]
[1736595637338,20.0,186.66,186.59,32.71298767]
[1736595637538,20.0,186.66,186.6,23.776884]
[1736595638157,20.0,186.66,186.59,8.93610367]
[1736595639036,8.1304,186.69,186.64,23.776884]
[1736595639243,8.1663,186.74,186.64,32.71298767]
[1736595640356,8.1663,186.74,186.61,20.0]
[1736595640536,20.0,186.71,186.59,2.3547173]
[1736595640738,20.0,186.71,186.62,23.776884]
[1736595642003,2.10346974,186.76,186.64,8.93610367]
[1736595642135,1.5518,186.79,186.69,23.776884]
[1736595642342,1.5518,186.79,186.69,32.71298767]
[1736595642755,20.0,186.77,186.69,32.71298767]
[1736595648159,20.0,186.77,186.71,23.776884]
[1736595648961,1.5518,186.79,186.71,23.776884]
[1736595652272,1.5518,186.79,186.71,8.93610367]
[1736595653467,1.5518,186.79,186.7,8.93610367]
[1736595654290,1.5518,186.79,186.7,32.71298767]
[1736595654889,1.5518,186.79,186.71,32.71298767]
[1736595655189,1.5622,186.84,186.75,23.776884]
[1736595656386,1.5622,186.84,186.75,32.71298767]
[1736595660595,1.5622,186.84,186.77,23.776884]
[1736595660784,1.5622,186.84,186.79,23.776884]
[1736595661002,7.6079,186.88,186.79,23.776884]
[1736595661694,7.6079,186.88,186.81,23.776884]
[1736595662301,7.6079,186.88,186.83,23.776884]
[1736595662517,1.5622,186.88,186.83,23.776884]
[1736595662801,7.6079,186.92,186.84,23.776884]
[1736595662971,7.6079,186.92,186.77,0.80259454]
[1736595662972,20.0,186.89,186.77,0.80259454]
[1736595663173,20.0,186.89,186.78,8.93610367]
[1736595663381,20.0,186.89,186.79,23.776884]
[1736595664283,20.0,186.89,186.81,23.776884]
[1736595669515,20.0,186.89,186.81,8.93610367]
[1736595669716,7.6079,186.92,186.84,8.93610367]
[1736595670423,7.6079,186.92,186.85,32.71298767]
[1736595671287,7.6079,186.92,186.85,23.776884]
[1736595672511,7.6079,186.92,186.84,8.93610367]
[1736595672812,7.6079,186.92,186.78,8.93610367]
[1736595672813,20.0,186.89,186.78,8.93610367]
[1736595673019,20.0,186.89,186.79,23.776884]
[1736595673914,20.0,186.89,186.8,8.93610367]
[1736595675014,20.0,186.89,186.78,23.776884]
[1736595675203,20.0,186.89,186.8,23.776884]
[1736595675814,20.0,186.89,186.8,8.93610367]
[1736595676122,20.0,186.89,186.8,23.776884]
[1736595677222,20.0,186.89,186.79,23.776884]
[1736595677926,20.0,186.89,186.79,8.93610367]
[1736595680218,7.6079,186.92,186.82,8.93610367]
[1736595680428,7.6079,186.92,186.83,23.776884]
[1736595681213,19.93553295,186.89,186.81,8.93610367]
[1736595682645,19.88044473,186.89,186.81,8.93610367]
[1736595683602,19.88044473,186.89,186.83,8.93610367]
[1736595683800,19.88044473,186.89,186.83,23.776884]
[1736595685426,19.88044473,186.89,186.81,8.93610367]
[1736595685804,7.6079,186.92,186.82,8.93610367]
[1736595686029,7.6079,186.92,186.83,23.776884]
[1736595687127,7.6079,186.92,186.83,8.93610367]
[1736595688608,7.6079,186.92,186.84,23.776884]
[1736595690729,7.6079,186.92,186.82,8.93610367]
[1736595690937,7.6079,186.92,186.81,8.93610367]
[1736595691806,7.6079,186.92,186.8,8.93610367]
[1736595693911,20.0,186.89,186.76,0.80272416]
[1736595694107,20.0,186.89,186.78,8.93610367]
[1736595695714,20.0,186.89,186.79,23.776884]
[1736595696827,20.0,186.89,186.79,32.71298767]
[1736595697139,20.0,186.89,186.79,8.93610367]
[1736595698519,20.0,186.89,186.82,23.776884]
[1736595704721,20.0,186.89,186.78,0.80267721]
[1736595704930,20.0,186.89,186.78,8.93610367]
[1736595705123,20.0,186.89,186.79,23.776884]
[1736595707846,20.0,186.89,186.79,8.93610367]
[1736595708051,20.0,186.89,186.8,23.776884]
[1736595709051,20.0,186.89,186.79,8.93610367]
[1736595709253,20.0,186.89,186.79,32.71298767]
[1736595709473,20.0,186.89,186.8,23.776884]
[1736595710454,20.0,186.89,186.79,8.93610367]
[1736595710656,20.0,186.89,186.8,23.776884]
[1736595711577,20.0,186.89,186.79,8.93610367]
[1736595711736,20.0,186.89,186.8,23.776884]
[1736595712744,20.0,186.89,186.79,8.93610367]
[1736595712945,20.0,186.89,186.79,32.71298767]
[1736595713257,20.0,186.89,186.8,23.776884]
[1736595714356,20.0,186.89,186.77,20.0]
[1736595714665,20.0,186.89,186.78,8.93610367]
[1736595715033,1.5067,186.88,186.78,8.93610367]
[1736595715234,6.5665,186.87,186.76,8.93610367]
[1736595715557,6.5665,186.87,186.77,23.776884]
[1736595715859,6.5665,186.87,186.77,8.93610367]
[1736595716045,6.5665,186.87,186.79,23.776884]
[1736595720549,6.5665,186.87,186.79,24.57971019]
[1736595720750,6.5665,186.87,186.8,23.776884]
[1736595721269,6.5665,186.87,186.78,8.93610367]
[1736595722159,6.5665,186.87,186.79,23.776884]
[1736595722859,6.5665,186.87,186.76,8.93610367]
[1736595723065,20.0,186.84,186.77,23.776884]
[1736595724158,20.0,186.84,186.77,8.93610367]
[1736595726177,6.5665,186.87,186.77,8.93610367]
[1736595726349,6.5665,186.87,186.78,23.776884]
[1736595727450,6.5665,186.87,186.77,8.93610367]
[1736595730386,6.5665,186.87,186.78,8.93610367]
[1736595734977,6.5665,186.87,186.76,23.776884]
[1736595735174,20.0,186.84,186.76,32.71298767]
[1736595741678,20.0,186.84,186.76,23.776884]
[1736595744570,1.662,186.83,186.74,0.80295161]
[1736595744771,1.662,186.83,186.7,15.85485394]
[1736595744967,6.0371,186.82,186.72,8.93610367]
[1736595745292,20.0,186.79,186.71,8.93610367]
[1736595746586,20.0,186.79,186.72,23.776884]
[1736595748273,20.0,186.79,186.72,8.93610367]
[1736595748679,1.662,186.78,186.68,23.776884]
[1736595748875,1.662,186.78,186.71,8.93610367]
[1736595749465,1.662,186.78,186.72,23.776884]
[1736595750289,1.662,186.78,186.72,8.93610367]
[1736595751265,1.662,186.78,186.69,23.776884]
[1736595751470,1.662,186.78,186.72,8.93610367]
[1736595751891,1.662,186.78,186.7,0.80308911]
[1736595752294,1.662,186.78,186.72,8.93610367]
[1736595752678,1.662,186.78,186.7,0.80308911]
[1736595752907,1.662,186.78,186.72,8.93610367]
[1736595755696,1.662,186.78,186.72,23.776884]
[1736595762601,20.0,186.79,186.72,8.93610367]
[1736595774035,6.0371,186.82,186.73,23.776884]
[1736595774199,6.0371,186.82,186.74,8.93610367]
[1736595778810,20.0,186.8,186.74,8.93610367]
[1736595780324,20.0,186.8,186.73,23.776884]
[1736595780507,20.0,186.8,186.73,32.71298767]
[1736595782909,21.5564,186.83,186.75,32.71298767]
[1736595783107,1.5564,186.83,186.77,32.71298767]
[1736595783327,1.5564,186.83,186.78,8.93610367]
[1736595784322,1.5564,186.83,186.77,8.93610367]
[1736595788607,1.5564,186.83,186.76,8.93610367]
[1736595788832,1.5564,186.83,186.74,28.93610367]
[1736595789217,1.5564,186.83,186.75,23.776884]
[1736595790136,1.5564,186.83,186.75,32.71298767]
[1736595794062,1.5564,186.83,186.77,23.776884]
[1736595794220,1.5564,186.83,186.77,8.93610367]
[1736595798434,6.0531,186.86,186.79,32.71298767]
[1736595798736,6.0531,186.86,186.8,8.93610367]
[1736595798923,20.0,186.87,186.8,8.93610367]
[1736595800235,6.11426067,186.91,186.81,8.93610367]
[1736595801315,6.11426067,186.91,186.82,8.93610367]
[1736595804737,3.7272564,186.94,186.84,8.93610367]
[1736595804738,1.5572,186.94,186.84,8.93610367]
[1736595804945,1.5572,186.94,186.85,32.71298767]
[1736595810446,1.49277435,186.94,186.85,32.71298767]
[1736595811745,1.49277435,186.94,186.86,8.93610367]
[1736595812753,1.49277435,186.94,186.85,8.93610367]
[1736595812927,1.49277435,186.94,186.85,23.776884]
[1736595814323,1.49277435,186.94,186.85,32.71298767]
[1736595814527,1.49277435,186.94,186.86,8.93610367]
[1736595815629,1.49277435,186.94,186.85,8.93610367]
[1736595817254,1.49277435,186.94,186.85,23.776884]
[1736595818455,2.15881881,186.98,186.92,8.93610367]
[1736595818637,7.8218,186.99,186.96,8.93610367]
[1736595819144,7.8218,186.99,186.95,8.93610367]
[1736595820140,0.0649137,187.01,186.96,8.93610367]
[1736595820336,0.0649137,187.01,186.97,8.93610367]
[1736595820535,0.0649137,187.01,186.95,8.93610367]
[1736595821446,0.0649137,187.01,186.96,8.93610367]
[1736595821637,0.0649137,187.01,186.95,8.93610367]
[1736595823042,0.0649137,187.01,186.94,8.93610367]
[1736595823250,7.8218,187.0,186.92,8.93610367]
[1736595823639,7.8218,187.0,186.91,8.93610367]
[1736595826151,7.8218,187.0,186.92,8.93610367]
[1736595826412,7.8218,187.0,186.93,8.93610367]
[1736595829763,7.8218,187.0,186.92,8.93610367]
[1736595830260,20.0,186.92,186.83,8.93610367]
[1736595830439,20.0,186.92,186.81,56.88]
[1736595830665,20.0,186.92,186.82,8.93610367]
[1736595830858,1.607,186.91,186.81,56.88]
[1736595831054,21.607,186.91,186.81,56.88]
[1736595831451,20.0,186.87,186.81,56.88]
[1736595831664,20.0,186.87,186.8,32.71298767]
[1736595831893,20.0,186.87,186.81,8.93610367]
[1736595832741,20.0,186.87,186.8,8.93610367]
[1736595834281,6.2244,186.9,186.8,8.93610367]
[1736595834775,20.0,186.87,186.81,9.7388801]
[1736595834954,6.2244,186.9,186.83,8.93610367]
[1736595836145,21.607,186.91,186.83,9.73872549]
[1736595836369,21.607,186.91,186.84,8.93610367]
[1736595837256,21.607,186.91,186.83,9.73872549]
[1736595838264,21.607,186.91,186.84,32.71298767]
[1736595839572,21.607,186.91,186.8,20.0]
[1736595839867,21.607,186.91,186.83,8.93610367]
[1736595840447,21.607,186.91,186.82,23.776884]
[1736595840763,21.607,186.91,186.82,32.71298767]
[1736595844175,21.607,186.91,186.82,23.776884]
[1736595844766,21.607,186.91,186.8,28.93610367]
[1736595844962,21.607,186.91,186.79,8.93610367]
[1736595845379,21.607,186.91,186.8,23.776884]
[1736595848586,21.607,186.91,186.8,8.93610367]
[1736595848959,21.607,186.91,186.79,32.71298767]
[1736595850678,20.0,186.87,186.79,32.71298767]
[1736595850885,20.0,186.87,186.77,8.93610367]
[1736595851264,20.0,186.87,186.78,8.93610367]
[1736595852679,20.0,186.87,186.77,32.71298767]
[1736595854289,1.5176,186.86,186.77,23.776884]
[1736595854468,1.5176,186.86,186.77,32.71298767]
[1736595854686,1.5176,186.86,186.77,23.776884]
[1736595855185,1.5176,186.86,186.76,8.93610367]
[1736595855491,20.0,186.82,186.74,8.93610367]
[1736595855791,20.0,186.82,186.75,23.776884]
[1736595855966,20.0,186.82,186.74,23.776884]
[1736595856163,20.0,186.82,186.71,0.80300856]
[1736595856479,20.0,186.82,186.72,23.776884]
[1736595856784,20.0,186.82,186.73,8.93610367]
[1736595859491,20.0,186.82,186.7,23.776884]
[1736595859692,20.0,186.82,186.72,32.71298767]
[1736595860392,20.0,186.82,186.73,23.776884]
[1736595860809,20.0,186.82,186.72,8.93610367]
[1736595860979,20.0,186.82,186.73,23.776884]
[1736595861298,20.0,186.82,186.73,32.71298767]
[1736595862483,20.0,186.82,186.72,8.93610367]
[1736595862800,1.5176,186.81,186.72,8.93610367]
[1736595864404,1.5176,186.81,186.73,8.93610367]
[1736595864609,1.5176,186.81,186.74,8.93610367]
[1736595864988,1.5176,186.81,186.75,8.93610367]
[1736595865193,1.5176,186.81,186.74,8.93610367]
[1736595865388,1.5176,186.81,186.73,32.71298767]
[1736595866777,1.5176,186.81,186.75,8.93610367]
[1736595867193,1.5176,186.81,186.74,8.93610367]
[1736595872015,1.5176,186.81,186.75,8.93610367]
[1736595872491,1.5176,186.81,186.76,23.776884]
[1736595872695,6.2378,186.85,186.77,9.73901701]
[1736595873303,6.2378,186.85,186.78,8.93610367]
[1736595876422,1.5247,186.86,186.79,32.71298767]
[1736595876628,1.5247,186.86,186.8,8.93610367]
[1736595876921,1.5247,186.86,186.79,8.93610367]
[1736595877332,1.5247,186.86,186.79,32.71298767]
[1736595878199,1.5247,186.86,186.8,8.93610367]
[1736595879022,1.5247,186.86,186.79,32.71298767]
[1736595881722,23.776884,186.94,186.79,32.71298767]
[1736595882092,0.84791294,186.95,186.79,32.71298767]
[1736595882093,20.0,186.91,186.79,32.71298767]
[1736595882894,20.0,186.92,186.79,32.71298767]
[1736595884735,1.1007,186.91,186.79,32.71298767]
[1736595885229,1.1007,186.91,186.8,32.71298767]
[1736595885404,1.1007,186.91,186.81,8.93610367]
[1736595886203,1.1007,186.91,186.82,9.73881027]
[1736595886424,1.1007,186.95,186.83,8.93610367]
[1736595886600,20.0,186.94,186.83,8.93610367]
[1736595886801,1.1007,186.95,186.83,8.93610367]
[1736595887207,20.0,186.94,186.83,8.93610367]
[1736595888534,20.0,186.94,186.83,23.776884]
[1736595890128,20.0,186.94,186.83,32.71298767]
[1736595890331,20.0,186.94,186.84,23.776884]
[1736595891328,20.0,186.94,186.82,1.5956]
[1736595892519,20.0,186.94,186.82,10.53170367]
[1736595895336,20.0,186.94,186.88,1000.0]
[1736595902230,1.1007,186.95,186.88,1000.0]
[1736595902427,6.6636,186.97,186.88,1000.0]
[1736595902720,20.0,186.96,186.88,1000.0]
[1736595903133,6.80965186,186.99,186.88,1000.0]
[1736595903332,20.0,186.98,186.88,1000.0]
[1736595903564,20.0,186.98,186.89,23.776884]
[1736595903897,1.1007,187.0,186.9,8.93610367]
[1736595904159,21.1007,187.0,186.9,8.93610367]
[1736595904336,21.1007,187.0,186.89,23.776884]
[1736595906158,21.1007,187.0,186.88,1001.6578]
[1736595907176,20.0,186.99,186.88,1001.6578]
[1736595907377,50.343384,186.98,186.88,1000.0]
[1736595907564,55.343384,186.98,186.88,1000.0]
[1736595907772,60.343384,186.98,186.88,1000.0]
[1736595908484,67.15303586,186.98,186.88,1000.0]
[1736595910779,20.0,186.93,186.88,1000.0]
[1736595912971,20.0,186.89,186.88,1000.0]
[1736595914197,43.776884,186.89,186.88,923.7455547]
[1736595914395,43.776884,186.89,186.88,922.2559347]
[1736595914687,43.776884,186.89,186.88,919.2559347]
[1736595915387,43.776884,186.89,186.88,909.82803882]
[1736595915600,45.98106071,186.89,186.88,909.82803882]
[1736595916197,22.20417671,186.89,186.88,909.82803882]
[1736595917277,22.20417671,186.89,186.88,901.39745433]
[1736595917891,22.20417671,186.89,186.88,893.49708072]
[1736595918063,22.20417671,186.89,186.88,882.71728881]
[1736595919093,22.20417671,186.89,186.88,872.54358392]
[1736595919493,20.0,186.89,186.88,872.54358392]
[1736595925901,20.0,186.89,186.88,865.63358392]
[1736595926082,20.0,186.89,186.88,860.83358392]
[1736595926277,20.0,186.89,186.88,858.04233893]
[1736595928802,20.0,186.89,186.88,848.04233893]
[1736595929581,20.0,186.89,186.88,839.95233893]
[1736595930505,20.0,186.89,186.88,763.69789363]
[1736595933313,20.0,186.89,186.88,756.78789363]
[1736595934109,20.0,186.89,186.88,745.38842046]
[1736595937009,20.0,186.89,186.88,741.98842046]
[1736595938032,20.0,186.89,186.88,737.38842046]
[1736595938197,43.776884,186.89,186.88,632.55423878]
[1736595938395,43.776884,186.89,186.88,470.22281787]
[1736595938735,43.776884,186.89,186.88,366.68881787]
[1736595939231,43.776884,186.89,186.88,359.03881787]
[1736595939406,43.776884,186.89,186.88,349.98881787]
[1736595939822,43.776884,186.89,186.88,339.58881787]
[1736595940401,43.776884,186.89,186.88,336.55153621]
[1736595940624,43.776884,186.89,186.88,327.39654406]
[1736595940925,43.776884,186.89,186.88,251.14209876]
[1736595941634,43.776884,186.89,186.88,247.37209876]
[1736595942935,43.776884,186.89,186.88,244.48749006]
[1736595943640,20.0,186.89,186.88,244.48749006]
[1736595943942,67.5800578,186.92,186.88,244.48749006]
[1736595944733,20.0,186.89,186.88,244.48749006]
[1736595944943,43.776884,186.89,186.88,106.68749006]
[1736595945113,43.776884,186.89,186.88,30.43304476]
[1736595946339,43.776884,186.89,186.88,13.57924904]
[1736595947547,20.0,186.85,186.81,6.3097]
[1736595958126,2.13635127,186.91,186.81,6.3097]
[1736595958331,20.0,186.91,186.81,6.3097]
[1736595959333,19.93559504,186.91,186.81,6.3097]
[1736595960354,23.776884,186.92,186.81,6.3097]
[1736595961969,20.0,186.9,186.81,6.3097]
[1736595966286,20.0,186.91,186.81,15.24580367]
[1736595967267,20.0,186.91,186.82,1.5855]
[1736595967562,20.0,186.91,186.83,8.93610367]
[1736595967747,81.7,186.94,186.84,6.4094]
[1736595968059,20.0,186.91,186.84,6.4094]
[1736595968267,81.7,186.94,186.85,1.5855]
[1736595968477,81.7,186.94,186.85,10.52160367]
[1736595968674,20.0,186.91,186.85,10.52160367]
[1736595969159,81.7,186.94,186.86,15.34550367]
[1736595969369,20.0,186.91,186.86,15.34550367]
[1736595969561,3.51117548,187.0,186.86,15.34550367]
[1736595969859,23.776884,186.99,186.86,15.34550367]
[1736595970067,20.0,186.97,186.86,15.34550367]
[1736595971469,20.0,186.95,186.86,6.4094]
[1736595972362,20.0,186.94,186.86,6.4094]
[1736595972953,20.0,186.93,186.86,6.4094]
[1736595981095,23.776884,186.92,186.86,6.4094]
[1736595981388,23.776884,186.92,186.85,1.5855]
[1736595981389,20.0,186.89,186.85,1.5855]
[1736595988297,20.0,186.85,186.82,6.5618]
[1736595988667,20.0,186.85,186.81,1.5753]
[1736595996585,81.7,186.9,186.81,1.5753]
[1736595996786,81.7,186.9,186.82,6.5546]
[1736595996989,81.7,186.9,186.83,8.93610367]
[1736595997993,81.7,186.9,186.82,15.49070367]
[1736595999020,81.7,186.9,186.84,1.6589]
[1736596001279,20.0,186.93,186.84,1.6589]
[1736596001890,20.0,186.89,186.84,1.6589]
[1736596004107,20.0,186.85,186.82,6.5546]
[1736596005710,20.0,186.85,186.8,1.6589]
[1736596009632,20.0,186.88,186.8,1.6589]
[1736596014005,20.0,186.87,186.8,1.6589]
[1736596022031,20.0,186.91,186.83,8.93610367]
[1736596022418,20.0,186.91,186.82,1.6273]
[1736596022633,23.776884,186.93,186.82,1.6273]
[1736596022928,81.7,186.89,186.82,1.6273]
[1736596024106,20.0,186.86,186.82,1.6273]
[1736596024534,81.7,186.85,186.82,1.6273]
[1736596024716,81.7,186.84,186.81,6.2263]
[1736596025037,81.7,186.84,186.78,1.666]
[1736596025038,81.7,186.82,186.78,1.666]
[1736596026710,81.7,186.81,186.78,1.666]
[1736596028242,81.7,186.79,186.78,1.666]
[1736596028415,81.7,186.79,186.77,6.5339]
[1736596028616,81.7,186.78,186.74,1.666]
[1736596028820,20.0,186.75,186.74,1.666]
[1736596030042,81.7,186.73,186.69,1.5342]
[1736596035923,81.7,186.73,186.69,10.47030367]
[1736596037116,81.7,186.73,186.69,1.5342]
[1736596039524,81.7,186.72,186.69,1.5342]
[1736596039947,81.7,186.72,186.67,6.1933]
[1736596045832,81.7,186.71,186.64,10.47030367]
[1736596046359,81.7,186.71,186.64,1.5342]
[1736596049163,20.0,186.68,186.64,1.5342]
[1736596049356,20.0,186.68,186.61,8.93610367]
[1736596049558,81.7,186.67,186.6,8.93610367]
[1736596049961,81.7,186.67,186.61,8.93610367]
[1736596050261,81.7,186.67,186.64,8.93610367]
[1736596051768,81.7,186.67,186.6,0.80365945]
[1736596052005,81.7,186.67,186.63,8.93610367]
[1736596055363,125.476884,186.75,186.63,8.93610367]
[1736596056471,81.7,186.7,186.62,8.93610367]
[1736596057293,81.7,186.7,186.63,8.93610367]
[1736596059671,81.7,186.7,186.61,8.93610367]
[1736596061279,81.7,186.69,186.61,8.93610367]
[1736596063492,81.7,186.69,186.62,8.93610367]
[1736596063669,81.7,186.69,186.63,8.93610367]
[1736596063874,81.7,186.69,186.67,8.93610367]
[1736596064995,81.7,186.69,186.66,8.93610367]
[1736596065674,81.7,186.69,186.67,8.93610367]
[1736596065910,81.7,186.74,186.67,8.93610367]
[1736596068699,81.7,186.74,186.66,8.93610367]
[1736596069287,20.0,186.7,186.59,8.1473]
[1736596069489,20.0,186.7,186.62,8.93610367]
[1736596070395,81.7,186.72,186.65,8.93610367]
[1736596071000,81.7,186.72,186.67,8.93610367]
[1736596071396,81.7,186.72,186.66,8.93610367]
[1736596073509,81.7,186.71,186.65,8.93610367]
[1736596073882,81.7,186.71,186.66,8.93610367]
[1736596074382,81.7,186.71,186.65,8.93610367]
[1736596079217,81.7,186.71,186.66,8.93610367]
[1736596081909,81.7,186.71,186.7,8.93610367]
[1736596082111,81.7,186.76,186.7,8.93610367]
[1736596082312,81.7,186.76,186.66,36.54772807]
[1736596082313,81.7,186.76,186.69,8.93610367]
[1736596083017,81.7,186.76,186.67,8.93610367]
[1736596084206,20.0,186.73,186.67,8.93610367]
[1736596085414,20.0,186.73,186.65,7.7109]
[1736596085599,20.0,186.73,186.66,8.93610367]
[1736596087503,20.0,186.73,186.65,16.64700367]
[1736596088108,81.7,186.72,186.65,16.64700367]
[1736596088598,81.7,186.7,186.62,8.93610367]
[1736596090320,81.7,186.7,186.61,8.93610367]
[1736596090919,81.7,186.7,186.62,8.93610367]
[1736596092118,20.0,186.67,186.62,8.93610367]
[1736596092507,20.0,186.67,186.61,8.93610367]
[1736596092903,20.0,186.67,186.62,8.93610367]
[1736596095443,20.0,186.67,186.63,8.93610367]
[1736596100435,81.7,186.7,186.63,8.93610367]
[1736596100621,81.7,186.7,186.68,8.93610367]
[1736596100936,81.7,186.7,186.69,8.93610367]
[1736596101122,81.7,186.76,186.69,8.93610367]
[1736596101436,81.7,186.76,186.7,8.93610367]
[1736596103310,81.7,186.76,186.71,8.93610367]
[1736596104737,81.7,186.76,186.7,8.93610367]
[1736596105241,81.7,186.76,186.69,8.93610367]
[1736596106042,81.7,186.72,186.65,8.93610367]
[1736596106222,81.7,186.72,186.64,8.93610367]
[1736596106411,81.7,186.71,186.64,8.93610367]
[1736596109024,81.7,186.71,186.65,8.93610367]
[1736596111355,81.7,186.71,186.66,8.93610367]
[1736596111718,81.7,186.71,186.67,8.93610367]
[1736596112448,81.7,186.71,186.69,8.93610367]
[1736596112750,81.7,186.77,186.7,8.93610367]
[1736596112914,81.7,186.77,186.72,8.93610367]
[1736596113234,81.7,186.77,186.73,8.93610367]
[1736596114030,20.0,186.78,186.74,8.93610367]
[1736596115145,20.0,186.78,186.72,8.93610367]
[1736596116649,20.0,186.78,186.71,8.93610367]
[1736596118251,20.0,186.78,186.72,8.93610367]
[1736596118552,20.0,186.78,186.7,2.31398475]
[1736596118553,81.7,186.81,186.73,8.93610367]
[1736596121252,81.7,186.81,186.72,8.93610367]
[1736596121446,81.7,186.81,186.71,8.93610367]
[1736596121839,20.0,186.78,186.71,8.93610367]
[1736596123072,20.0,186.78,186.7,1.5108]
[1736596123073,81.7,186.77,186.7,1.5108]
[1736596123255,81.7,186.76,186.67,8.93610367]
[1736596124334,20.0,186.78,186.67,8.93610367]
[1736596124335,81.7,186.75,186.67,8.93610367]
[1736596124539,81.7,186.75,186.68,8.93610367]
[1736596124762,81.7,186.75,186.69,8.93610367]
[1736596124975,81.7,186.75,186.68,8.93610367]
[1736596126572,20.0,186.72,186.66,8.93610367]
[1736596127050,20.0,186.72,186.65,8.1877]
[1736596127241,20.0,186.72,186.66,8.93610367]
[1736596128560,81.7,186.71,186.65,1.6547]
[1736596128767,81.7,186.71,186.64,8.93610367]
[1736596129391,81.7,186.7,186.6,7.683]
[1736596129564,81.7,186.7,186.63,8.93610367]
[1736596129767,81.7,186.7,186.64,8.93610367]
[1736596130641,81.7,186.69,186.64,8.93610367]
[1736596131047,81.7,186.69,186.6,7.683]
[1736596131261,81.7,186.69,186.62,8.93610367]
[1736596131760,81.7,186.69,186.63,8.93610367]
[1736596132152,20.0,186.72,186.62,8.93610367]
[1736596132153,81.7,186.68,186.62,8.93610367]
[1736596135048,81.63560538,186.68,186.62,8.93610367]
[1736596136067,81.63560538,186.67,186.62,8.93610367]
[1736596136564,81.63560538,186.67,186.64,8.93610367]
[1736596136772,81.63560538,186.67,186.65,8.93610367]
[1736596137370,81.63560538,186.67,186.64,8.93610367]
[1736596137743,81.63560538,186.67,186.6,7.683]
[1736596137962,81.63560538,186.67,186.63,8.93610367]
[1736596139070,81.63560538,186.67,186.62,8.93610367]
[1736596139676,81.63560538,186.67,186.6,10.46650367]